Workbook

Sheet Menü
B2: Wirtschaftlichkeitsrechner Maisanbau
B3: MENÜ (Auswahl per Doppelklick)
B5: Beraterdaten | D5: Infos zu Trocknung und Schwund
B7: Beschreibung/Nutzungshinweise | D7: Trocknungstabelle
B9: Berechnung Gleichgewichtspreis | D9: Sortentypen
B11: Ergebnistabelle Gleichg.preis | D11: Entzüge und Nährstoffpreise
B13: Reifezahlrechner | D13: Parameter Reifezahl
A15: Ansprechpartner: Bernhard Blackert, Fachgebiet 11.1 "Beratungsteam Ökonomie" Kontakt: 0561/7299-330, Bernhard.Blackert@LLH.hessen.de

Sheet Beschreibung
B2: Wirtschaftlichkeitsrechner Maisanbau
A3: Mit dieser Excel-Anwendung können drei Fragestellungen bearbeitet werden:
A5: 1) | B5: Ist bei der angebauten Sorte bzw. dem Sortentyp eine Nutzung als Körnermais oder als Energie- bzw. Silomais wirtschaftlicher?
A7: 2) | B7: Welcher Preis ist für die Vermarktung als Feuchtmais erforderlich, um gegenüber der Vermarktung als trockenes Korn keinen ökonomischen Nachteil zu haben?
A9: 3) | B9: Ist aufgrund hoher Trocknungskosten im Körnermaisanbau der Anbau von Sorten mit niedriger Reifezahl wirtschaftlicher als der Anbau ertragreicherer Sorten mit hoher Reifezahl?
A11: zu Fragestellung 1:
B13: In Jahren mit hohen Maiserträgen stellt sich oft die Frage, ob die letzten Hektar noch in das Silo gezwängt oder lieber als Körnermais genutzt werden sollen. Bei normalem Kulturzustand besteht eine relativ feste Beziehung zwischen Gesamttrocken-masseertrag und Trockenmasseertrag Korn. Durch Vorgabe des Sortentyps kann deshalb bei einem geschätzten Trockenmasseertrag des Bestandes die Ertragserwartung Korn ermittelt werden. Die Anwendung errechnet unter Berücksichtigung der Kosten für Trocknung, Ernte, Abtransport des Erntegutes und mulchen der Stengel den Gleichgewichtspreis für Körnermais aus. Bei diesem Preis ist die Wirtschaftlichkeit von Körner- und Ganzpflanzennutzung gleich. In die Berechnung fließen auch die Kosten unterschiedlicher Nährstoffentzüge unter Berücksichtigung von Gärrestrückführung ein.
A15: zu Fragestellung 2:
B17: Gelegentlich wird vom Handel für Körnermais auch die Vermarktung im erntefeuchten Zustand angeboten. Für diesen Fall liefert diese Anwendung den Gleichgewichtspreis für feuchte Ware bei gegebenem Preis für trockene Ware. Dabei wurde davon Ausgegangen, dass bei beiden Verfahren die gleichen Kosten für Abtransport des Erntegutes anfallen. Sollte dies nicht der Fall sein, z. B. wenn direkt am Feld auf die LKWs des Handels abgetankt werden kann, dann ergibt sich für Feuchtmais ein Preisvorteil je ha in Höhe der Kosten für Abtransport. Wenn diese Kosten z. B. 60,- € je ha betragen und die Erntemenge Feuchtmais 150 dt/ha, dann verringert sich der ermittelte Gleichgewichtspreis für Feuchtmais um 0,40 € je dt.
A19: zu Fragestellung 3:
B21: Als Grenzwert für die Druschreife von Körnermais gilt eine Kornfeuchte von 35%. Die Assimilateinlagerung in die Körner schließt zwischen 33% und 35% Kornfeuchte ab. Eine möglichst trockene Ernte reduziert den Bruchkornanteil und senkt die Trocknungskosten. Kornfeuchten unter 25 % (bei Sorten mit extrem niedrieger FAO 27 %) sind zur Ernte i.d.R. nicht erreichbar. Unterscheiden sich zwei Sorten um zehn Einheiten in der Reifezahl, bedeutet dies eine Differenz von 1% im Trockensubstanzgehalt des Kornes. Dies entspricht einer verzögerten oder beschleunigten Abreife von 1 bis 3 Tagen. Bei der Betrachtung des Themas sind zwei Szenarien möglich, entweder werden die Sorten zu unterschiedlichen Terminen bei annähernd gleichen Feuchtegehalten, oder zum gleichen Termin mit unterschiedlichen Feuchten geerntet. Hier soll die zweite Möglichkeit betrachtet werden, da der Ertragsvorteil einer früheren Saat der Folgekultur (eventuell mit besseren Bodenverhältnissen) nur schwer quantifizierbar und damit ökonomisch bewertbar ist. Wird zum gleichen Termin geerntet, so entscheidet der Preis und der mögliche Mehrertrag der Sorte mit höherer Reifezahl maßgeblich über die wirtschaftliche Vorzüglichkeit der verschiedenen Sorten. Im Excel-Arbeitsblatt wird als Ergebnis der nötige Mehrertrag der Sorte mit höherer Reifezahl bei gegebenem Preis ausgewiesen. Bei der Berechnung wurden sowohl die unterschiedlichen Trocknungskosten, als auch die unterschiedlichen Nährstoffentzüge (monetär bewertet) berücksichtigt.
A23: Hinweise zur Nutzung der Anwendung
B25: Alle Preis- und Kostenangaben haben grundsätzlich ohne Vor- oder Umsatzsteuer zu erfolgen! Alle gelben Eingabefelder müssen ausgefüllt werden. Voreingestellt Werte sind überschreibbar! Rechts neben dem Eingabebereich ist das Ergebnis der Kalkulation sichtbar. Die Ergebnistabelle kann über den entsprechenden Button auf der Seite Berechnung ausgedruckt werden. Hier ist das Ergebnis um verschiedene Kornfeuchtevarianten erweitert.Die Trocknungskostentabelle muss jährlich auf Aktualität geprüft und bei Bedarf angepasst werden.
A27: Ansprechpartner: Bernhard Blackert, Fachgebiet 11.1 "Beratungsteam Ökonomie" Kontakt: 0561/7299-330, Bernhard.Blackert@LLH.hessen.de

Sheet Berechnung Gleichg.preis
A3: Körner- oder Silonutzung? Gleichgewichtspreis Körnermais? | G3: Ergebnisübersicht
A5: Alle Preise und Kosten ohne Umsatz- und Vorsteuer angeben !
A7: Eingaben zur Nutzung als Silomais/Biogasmais
B9: Sortentyp | D9: Körner spezial | H9: Ertrag Silonutzung dt FM/ha bei 32% TM | J9: =IF(G25="",(D11/32*100*10),"") -> 406.25
B11: Ertragsschätzung Silonutzung in t TM/ha | D11: 13 | H11: Kornertrag feucht in dt/ha | J11: =IF(G25="",(J13/(((D22-D24)*D26-1)*(-1))),"") -> 112.6086446
B13: Preis je t TM | D13: 80 | H13: Kornertrag bei Regelfeuchte in dt/ha | J13: =IF(G25="",(((D11*VLOOKUP(D9,Sorten!B3:C29,2,FALSE)/(1-D24)))*10),"") -> 89.18604651
B15: Höhe der Gärrestrücklieferung in % des Frischmasseertrages | D15: 0.75
H16: Gleichgewichtspreis Körnermais in €/dt | J16: =IF(G25="",((((D11*D13)+(J11*VLOOKUP(D22,Trocknungstabelle!B6:C165,2,FALSE))+D28+D30+D32-'Entzüge und Nährstoffpreise'!D11))/(D11*VLOOKUP(D9,Sorten!B3:C29,2,FALSE)/(1-D24))/10),"") -> 20.66273604
B17: Ausbringkosten Gärrest in €/m3 | D17: 5.5
H19: bereinigter Erlösvor-/nachteil je ha für Körnermais | J19: =IF(G25="",((($D$11*VLOOKUP($D$9,Sorten!$B$3:$C$29,2)))/(1-D24)*10*$D$34-($D$11*VLOOKUP($D$9,Sorten!$B$3:$C$29,2))/(1-D24)*10*$J$16),"") -> 26.56149775
A20: Eingaben zur Nutzung als Körnermais | H20: ="bei einem Marktpreis von "&D34&" €" -> bei einem Marktpreis von 21 €
B22: Kornfeuchte Erntegut in% | D22: 0.3 | H22: notwendiger Preis bei Vermarktung | J22: =IF(G25="",((J13*D34-(J11*VLOOKUP(D22,Trocknungstabelle!B6:C165,2,FALSE)))/J11),"") -> 11.432
H23: als feuchte Ware in €/dt
B24: Regelfeuchte in % | D24: 0.14
G25: =IF(OR(D9="",D11="",D13="",D15="",D17="",D22="",D24="",D26="",D28="",D30="",D32="",D34=""),"Alle gelben Eingabefelder müssen ausgefüllt sein!","") -> 
B26: Schwundfaktor | D26: 1.3
B28: Kosten Körnermaisernte in €/ha | D28: 180
B30: Kosten Abtransport Körnermais in €/ha | D30: 75
B32: evtl. Stengel mulchen in €/ha | D32: 0
B34: aktueller Preis Körnermais, trockene Ware in €/dt | D34: 21
A37: =IF(Beraterdaten!C5="","","Kontakt: "&Beraterdaten!C4&" "&Beraterdaten!C5&", "&Beraterdaten!C6&", "&Beraterdaten!C7&", Tel.: "&Beraterdaten!C8&", "&Beraterdaten!C4&"."&Beraterdaten!C5&"@LLH.hessen.de") -> Kontakt: Bernhard Blackert, FG 11.1 "Beratungsteam Ökonomie", Zentrale Kassel, Tel.: 0561/7299-330, Bernhard.Blackert@LLH.hessen.de

Sheet Ergebnistabelle Gleichg.preis
B3: Gleichgewichtspreis für Körnermais bei gegebenem Ertrag und Preis für Silomais
B5: Gleichgewichtspreis für Feuchtmais bei gegebenem Preis für Körnermais (trockene Ware)
B6: Bereinigter Erlösvor- bzw. - nachteil je ha bei gegebenem Marktpreis für Körnermais
B8: =CONCATENATE("Ergebnistabelle für eine Sorte des Typs ","'",'Berechnung Gleichg.preis'!D9,"'") -> Ergebnistabelle für eine Sorte des Typs 'Körner spezial'
B11: Ertrag Silomais TM in t/ha | C11: ='Berechnung Gleichg.preis'!$D$11 -> 13 | E11: Kornertrag feucht in dt | H11: ='Berechnung Gleichg.preis'!$J$11 -> 112.6086446 | J11: Preis Silomais je t TM | L11: ='Berechnung Gleichg.preis'!$D$13 -> 80
B12: Ertrag Silomais 32 % TM dt/ha | C12: ='Berechnung Gleichg.preis'!$J$9 -> 406.25 | E12: Kornertrag trocken in dt | H12: ='Berechnung Gleichg.preis'!$J$13 -> 89.18604651 | J12: Preis Körnermais je dt | L12: ='Berechnung Gleichg.preis'!$D$34 -> 21
B14: Kornfeuchte in % | C14: ='Berechnung Gleichg.preis'!D22 -> 0.3 | D14: =Trocknungstabelle!B46 -> 0.25 | E14: =Trocknungstabelle!B56 -> 0.26 | F14: =Trocknungstabelle!B66 -> 0.27 | G14: 0.28 | H14: 0.29 | I14: ='Berechnung Gleichg.preis'!D22 -> 0.3 | J14: =Trocknungstabelle!B106 -> 0.31 | K14: =Trocknungstabelle!B116 -> 0.32 | L14: =Trocknungstabelle!B126 -> 0.33
B15: Gleichgewichtpreis für Körnermais je dt | C15: =IF('Berechnung Gleichg.preis'!$J$16="","",((('Berechnung Gleichg.preis'!$D$11*'Berechnung Gleichg.preis'!$D$13)+(('Berechnung Gleichg.preis'!$D$11*VLOOKUP('Berechnung Gleichg.preis'!$D$9,Sorten!$B$3:$C$29,2,FALSE)/(1-'Berechnung Gleichg.preis'!$D$24))/(((C14-'Berechnung Gleichg.preis'!$D$24)*'Berechnung Gleichg.preis'!$D$26-1)*(-1)))*(VLOOKUP(C14,Trocknungstabelle!$B$6:$C$165,2)*10)+'Berechnung Gleichg.preis'!$D$28+'Berechnung Gleichg.preis'!$D$30+'Berechnung Gleichg.preis'!$D$32-'Entzüge und Nährstoffpreise'!$D$11))/('Berechnung Gleichg.preis'!$D$11*VLOOKUP('Berechnung Gleichg.preis'!$D$9,Sorten!$B$3:$C$29,2,FALSE)/(1-'Berechnung Gleichg.preis'!$D$24))/10) -> 20.66273604 | D15: =IF('Berechnung Gleichg.preis'!$J$16="","",((('Berechnung Gleichg.preis'!$D$11*'Berechnung Gleichg.preis'!$D$13)+(('Berechnung Gleichg.preis'!$D$11*VLOOKUP('Berechnung Gleichg.preis'!$D$9,Sorten!$B$3:$C$29,2,FALSE)/(1-'Berechnung Gleichg.preis'!$D$24))/(((D14-'Berechnung Gleichg.preis'!$D$24)*'Berechnung Gleichg.preis'!$D$26-1)*(-1)))*(VLOOKUP(D14,Trocknungstabelle!$B$6:$C$165,2)*10)+'Berechnung Gleichg.preis'!$D$28+'Berechnung Gleichg.preis'!$D$30+'Berechnung Gleichg.preis'!$D$32-'Entzüge und Nährstoffpreise'!$D$11))/('Berechnung Gleichg.preis'!$D$11*VLOOKUP('Berechnung Gleichg.preis'!$D$9,Sorten!$B$3:$C$29,2,FALSE)/(1-'Berechnung Gleichg.preis'!$D$24))/10) -> 19.34795462 | E15: =IF('Berechnung Gleichg.preis'!$J$16="","",((('Berechnung Gleichg.preis'!$D$11*'Berechnung Gleichg.preis'!$D$13)+(('Berechnung Gleichg.preis'!$D$11*VLOOKUP('Berechnung Gleichg.preis'!$D$9,Sorten!$B$3:$C$29,2,FALSE)/(1-'Berechnung Gleichg.preis'!$D$24))/(((E14-'Berechnung Gleichg.preis'!$D$24)*'Berechnung Gleichg.preis'!$D$26-1)*(-1)))*(VLOOKUP(E14,Trocknungstabelle!$B$6:$C$165,2)*10)+'Berechnung Gleichg.preis'!$D$28+'Berechnung Gleichg.preis'!$D$30+'Berechnung Gleichg.preis'!$D$32-'Entzüge und Nährstoffpreise'!$D$11))/('Berechnung Gleichg.preis'!$D$11*VLOOKUP('Berechnung Gleichg.preis'!$D$9,Sorten!$B$3:$C$29,2,FALSE)/(1-'Berechnung Gleichg.preis'!$D$24))/10) -> 19.59470981 | F15: =IF('Berechnung Gleichg.preis'!$J$16="","",((('Berechnung Gleichg.preis'!$D$11*'Berechnung Gleichg.preis'!$D$13)+(('Berechnung Gleichg.preis'!$D$11*VLOOKUP('Berechnung Gleichg.preis'!$D$9,Sorten!$B$3:$C$29,2,FALSE)/(1-'Berechnung Gleichg.preis'!$D$24))/(((F14-'Berechnung Gleichg.preis'!$D$24)*'Berechnung Gleichg.preis'!$D$26-1)*(-1)))*(VLOOKUP(F14,Trocknungstabelle!$B$6:$C$165,2)*10)+'Berechnung Gleichg.preis'!$D$28+'Berechnung Gleichg.preis'!$D$30+'Berechnung Gleichg.preis'!$D$32-'Entzüge und Nährstoffpreise'!$D$11))/('Berechnung Gleichg.preis'!$D$11*VLOOKUP('Berechnung Gleichg.preis'!$D$9,Sorten!$B$3:$C$29,2,FALSE)/(1-'Berechnung Gleichg.preis'!$D$24))/10) -> 19.84918537 | G15: =IF('Berechnung Gleichg.preis'!$J$16="","",((('Berechnung Gleichg.preis'!$D$11*'Berechnung Gleichg.preis'!$D$13)+(('Berechnung Gleichg.preis'!$D$11*VLOOKUP('Berechnung Gleichg.preis'!$D$9,Sorten!$B$3:$C$29,2,FALSE)/(1-'Berechnung Gleichg.preis'!$D$24))/(((G14-'Berechnung Gleichg.preis'!$D$24)*'Berechnung Gleichg.preis'!$D$26-1)*(-1)))*(VLOOKUP(G14,Trocknungstabelle!$B$6:$C$165,2)*10)+'Berechnung Gleichg.preis'!$D$28+'Berechnung Gleichg.preis'!$D$30+'Berechnung Gleichg.preis'!$D$32-'Entzüge und Nährstoffpreise'!$D$11))/('Berechnung Gleichg.preis'!$D$11*VLOOKUP('Berechnung Gleichg.preis'!$D$9,Sorten!$B$3:$C$29,2,FALSE)/(1-'Berechnung Gleichg.preis'!$D$24))/10) -> 20.1117494 | H15: =IF('Berechnung Gleichg.preis'!$J$16="","",((('Berechnung Gleichg.preis'!$D$11*'Berechnung Gleichg.preis'!$D$13)+(('Berechnung Gleichg.preis'!$D$11*VLOOKUP('Berechnung Gleichg.preis'!$D$9,Sorten!$B$3:$C$29,2,FALSE)/(1-'Berechnung Gleichg.preis'!$D$24))/(((H14-'Berechnung Gleichg.preis'!$D$24)*'Berechnung Gleichg.preis'!$D$26-1)*(-1)))*(VLOOKUP(H14,Trocknungstabelle!$B$6:$C$165,2)*10)+'Berechnung Gleichg.preis'!$D$28+'Berechnung Gleichg.preis'!$D$30+'Berechnung Gleichg.preis'!$D$32-'Entzüge und Nährstoffpreise'!$D$11))/('Berechnung Gleichg.preis'!$D$11*VLOOKUP('Berechnung Gleichg.preis'!$D$9,Sorten!$B$3:$C$29,2,FALSE)/(1-'Berechnung Gleichg.preis'!$D$24))/10) -> 20.20888072 | I15: =IF('Berechnung Gleichg.preis'!$J$16="","",((('Berechnung Gleichg.preis'!$D$11*'Berechnung Gleichg.preis'!$D$13)+(('Berechnung Gleichg.preis'!$D$11*VLOOKUP('Berechnung Gleichg.preis'!$D$9,Sorten!$B$3:$C$29,2,FALSE)/(1-'Berechnung Gleichg.preis'!$D$24))/(((I14-'Berechnung Gleichg.preis'!$D$24)*'Berechnung Gleichg.preis'!$D$26-1)*(-1)))*(VLOOKUP(I14,Trocknungstabelle!$B$6:$C$165,2)*10)+'Berechnung Gleichg.preis'!$D$28+'Berechnung Gleichg.preis'!$D$30+'Berechnung Gleichg.preis'!$D$32-'Entzüge und Nährstoffpreise'!$D$11))/('Berechnung Gleichg.preis'!$D$11*VLOOKUP('Berechnung Gleichg.preis'!$D$9,Sorten!$B$3:$C$29,2,FALSE)/(1-'Berechnung Gleichg.preis'!$D$24))/10) -> 20.66273604 | J15: =IF('Berechnung Gleichg.preis'!$J$16="","",((('Berechnung Gleichg.preis'!$D$11*'Berechnung Gleichg.preis'!$D$13)+(('Berechnung Gleichg.preis'!$D$11*VLOOKUP('Berechnung Gleichg.preis'!$D$9,Sorten!$B$3:$C$29,2,FALSE)/(1-'Berechnung Gleichg.preis'!$D$24))/(((J14-'Berechnung Gleichg.preis'!$D$24)*'Berechnung Gleichg.preis'!$D$26-1)*(-1)))*(VLOOKUP(J14,Trocknungstabelle!$B$6:$C$165,2)*10)+'Berechnung Gleichg.preis'!$D$28+'Berechnung Gleichg.preis'!$D$30+'Berechnung Gleichg.preis'!$D$32-'Entzüge und Nährstoffpreise'!$D$11))/('Berechnung Gleichg.preis'!$D$11*VLOOKUP('Berechnung Gleichg.preis'!$D$9,Sorten!$B$3:$C$29,2,FALSE)/(1-'Berechnung Gleichg.preis'!$D$24))/10) -> 20.96485868 | K15: =IF('Berechnung Gleichg.preis'!$J$16="","",((('Berechnung Gleichg.preis'!$D$11*'Berechnung Gleichg.preis'!$D$13)+(('Berechnung Gleichg.preis'!$D$11*VLOOKUP('Berechnung Gleichg.preis'!$D$9,Sorten!$B$3:$C$29,2,FALSE)/(1-'Berechnung Gleichg.preis'!$D$24))/(((K14-'Berechnung Gleichg.preis'!$D$24)*'Berechnung Gleichg.preis'!$D$26-1)*(-1)))*(VLOOKUP(K14,Trocknungstabelle!$B$6:$C$165,2)*10)+'Berechnung Gleichg.preis'!$D$28+'Berechnung Gleichg.preis'!$D$30+'Berechnung Gleichg.preis'!$D$32-'Entzüge und Nährstoffpreise'!$D$11))/('Berechnung Gleichg.preis'!$D$11*VLOOKUP('Berechnung Gleichg.preis'!$D$9,Sorten!$B$3:$C$29,2,FALSE)/(1-'Berechnung Gleichg.preis'!$D$24))/10) -> 21.27723613 | L15: =IF('Berechnung Gleichg.preis'!$J$16="","",((('Berechnung Gleichg.preis'!$D$11*'Berechnung Gleichg.preis'!$D$13)+(('Berechnung Gleichg.preis'!$D$11*VLOOKUP('Berechnung Gleichg.preis'!$D$9,Sorten!$B$3:$C$29,2,FALSE)/(1-'Berechnung Gleichg.preis'!$D$24))/(((L14-'Berechnung Gleichg.preis'!$D$24)*'Berechnung Gleichg.preis'!$D$26-1)*(-1)))*(VLOOKUP(L14,Trocknungstabelle!$B$6:$C$165,2)*10)+'Berechnung Gleichg.preis'!$D$28+'Berechnung Gleichg.preis'!$D$30+'Berechnung Gleichg.preis'!$D$32-'Entzüge und Nährstoffpreise'!$D$11))/('Berechnung Gleichg.preis'!$D$11*VLOOKUP('Berechnung Gleichg.preis'!$D$9,Sorten!$B$3:$C$29,2,FALSE)/(1-'Berechnung Gleichg.preis'!$D$24))/10) -> 21.60039953
B16: ="Gleichgewichtpreis für Feuchtmais* bei einem Preis für trocknen Mais von "&'Berechnung Gleichg.preis'!D34&" €" -> Gleichgewichtpreis für Feuchtmais* bei einem Preis für trocknen Mais von 21 € | C16: =IF('Berechnung Gleichg.preis'!$D$34="","",(10*'Berechnung Gleichg.preis'!$D$34-((10/(((C14-'Berechnung Gleichg.preis'!$D$24)*'Berechnung Gleichg.preis'!$D$26-1)*(-1)))*VLOOKUP(C14,Trocknungstabelle!$B$6:$C$165,2)))/(10/(((C14-'Berechnung Gleichg.preis'!$D$24)*'Berechnung Gleichg.preis'!$D$26-1)*(-1)))) -> 11.432 | D16: =IF('Berechnung Gleichg.preis'!$D$34="","",(10*'Berechnung Gleichg.preis'!$D$34-((10/(((D14-'Berechnung Gleichg.preis'!$D$24)*'Berechnung Gleichg.preis'!$D$26-1)*(-1)))*VLOOKUP(D14,Trocknungstabelle!$B$6:$C$165,2)))/(10/(((D14-'Berechnung Gleichg.preis'!$D$24)*'Berechnung Gleichg.preis'!$D$26-1)*(-1)))) -> 13.497 | E16: =IF('Berechnung Gleichg.preis'!$D$34="","",(10*'Berechnung Gleichg.preis'!$D$34-((10/(((E14-'Berechnung Gleichg.preis'!$D$24)*'Berechnung Gleichg.preis'!$D$26-1)*(-1)))*VLOOKUP(E14,Trocknungstabelle!$B$6:$C$165,2)))/(10/(((E14-'Berechnung Gleichg.preis'!$D$24)*'Berechnung Gleichg.preis'!$D$26-1)*(-1)))) -> 13.084 | F16: =IF('Berechnung Gleichg.preis'!$D$34="","",(10*'Berechnung Gleichg.preis'!$D$34-((10/(((F14-'Berechnung Gleichg.preis'!$D$24)*'Berechnung Gleichg.preis'!$D$26-1)*(-1)))*VLOOKUP(F14,Trocknungstabelle!$B$6:$C$165,2)))/(10/(((F14-'Berechnung Gleichg.preis'!$D$24)*'Berechnung Gleichg.preis'!$D$26-1)*(-1)))) -> 12.671 | G16: =IF('Berechnung Gleichg.preis'!$D$34="","",(10*'Berechnung Gleichg.preis'!$D$34-((10/(((G14-'Berechnung Gleichg.preis'!$D$24)*'Berechnung Gleichg.preis'!$D$26-1)*(-1)))*VLOOKUP(G14,Trocknungstabelle!$B$6:$C$165,2)))/(10/(((G14-'Berechnung Gleichg.preis'!$D$24)*'Berechnung Gleichg.preis'!$D$26-1)*(-1)))) -> 12.258 | H16: =IF('Berechnung Gleichg.preis'!$D$34="","",(10*'Berechnung Gleichg.preis'!$D$34-((10/(((H14-'Berechnung Gleichg.preis'!$D$24)*'Berechnung Gleichg.preis'!$D$26-1)*(-1)))*VLOOKUP(H14,Trocknungstabelle!$B$6:$C$165,2)))/(10/(((H14-'Berechnung Gleichg.preis'!$D$24)*'Berechnung Gleichg.preis'!$D$26-1)*(-1)))) -> 11.985 | I16: =IF('Berechnung Gleichg.preis'!$D$34="","",(10*'Berechnung Gleichg.preis'!$D$34-((10/(((I14-'Berechnung Gleichg.preis'!$D$24)*'Berechnung Gleichg.preis'!$D$26-1)*(-1)))*VLOOKUP(I14,Trocknungstabelle!$B$6:$C$165,2)))/(10/(((I14-'Berechnung Gleichg.preis'!$D$24)*'Berechnung Gleichg.preis'!$D$26-1)*(-1)))) -> 11.432 | J16: =IF('Berechnung Gleichg.preis'!$D$34="","",(10*'Berechnung Gleichg.preis'!$D$34-((10/(((J14-'Berechnung Gleichg.preis'!$D$24)*'Berechnung Gleichg.preis'!$D$26-1)*(-1)))*VLOOKUP(J14,Trocknungstabelle!$B$6:$C$165,2)))/(10/(((J14-'Berechnung Gleichg.preis'!$D$24)*'Berechnung Gleichg.preis'!$D$26-1)*(-1)))) -> 11.009 | K16: =IF('Berechnung Gleichg.preis'!$D$34="","",(10*'Berechnung Gleichg.preis'!$D$34-((10/(((K14-'Berechnung Gleichg.preis'!$D$24)*'Berechnung Gleichg.preis'!$D$26-1)*(-1)))*VLOOKUP(K14,Trocknungstabelle!$B$6:$C$165,2)))/(10/(((K14-'Berechnung Gleichg.preis'!$D$24)*'Berechnung Gleichg.preis'!$D$26-1)*(-1)))) -> 10.586 | L16: =IF('Berechnung Gleichg.preis'!$D$34="","",(10*'Berechnung Gleichg.preis'!$D$34-((10/(((L14-'Berechnung Gleichg.preis'!$D$24)*'Berechnung Gleichg.preis'!$D$26-1)*(-1)))*VLOOKUP(L14,Trocknungstabelle!$B$6:$C$165,2)))/(10/(((L14-'Berechnung Gleichg.preis'!$D$24)*'Berechnung Gleichg.preis'!$D$26-1)*(-1)))) -> 10.163
B17: ="Erlösvor- bzw. -nachteil je ha für Körnermais, bei einem Marktpreis von "&'Berechnung Gleichg.preis'!D34&" €" -> Erlösvor- bzw. -nachteil je ha für Körnermais, bei einem Marktpreis von 21 € | C17: =IF('Berechnung Gleichg.preis'!$D$34="","",(('Berechnung Gleichg.preis'!$D$11*VLOOKUP('Berechnung Gleichg.preis'!$D$9,Sorten!$B$3:$C$29,2)))/(1-'Berechnung Gleichg.preis'!$D$24)*10*'Berechnung Gleichg.preis'!$D$34-('Berechnung Gleichg.preis'!$D$11*VLOOKUP('Berechnung Gleichg.preis'!$D$9,Sorten!$B$3:$C$29,2))/(1-'Berechnung Gleichg.preis'!$D$24)*10*C15) -> 26.56149775 | D17: =IF('Berechnung Gleichg.preis'!$D$34="","",(('Berechnung Gleichg.preis'!$D$11*VLOOKUP('Berechnung Gleichg.preis'!$D$9,Sorten!$B$3:$C$29,2)))/(1-'Berechnung Gleichg.preis'!$D$24)*10*'Berechnung Gleichg.preis'!$D$34-('Berechnung Gleichg.preis'!$D$11*VLOOKUP('Berechnung Gleichg.preis'!$D$9,Sorten!$B$3:$C$29,2))/(1-'Berechnung Gleichg.preis'!$D$24)*10*D15) -> 130.1081786 | E17: =IF('Berechnung Gleichg.preis'!$D$34="","",(('Berechnung Gleichg.preis'!$D$11*VLOOKUP('Berechnung Gleichg.preis'!$D$9,Sorten!$B$3:$C$29,2)))/(1-'Berechnung Gleichg.preis'!$D$24)*10*'Berechnung Gleichg.preis'!$D$34-('Berechnung Gleichg.preis'!$D$11*VLOOKUP('Berechnung Gleichg.preis'!$D$9,Sorten!$B$3:$C$29,2))/(1-'Berechnung Gleichg.preis'!$D$24)*10*E15) -> 110.6747731 | F17: =IF('Berechnung Gleichg.preis'!$D$34="","",(('Berechnung Gleichg.preis'!$D$11*VLOOKUP('Berechnung Gleichg.preis'!$D$9,Sorten!$B$3:$C$29,2)))/(1-'Berechnung Gleichg.preis'!$D$24)*10*'Berechnung Gleichg.preis'!$D$34-('Berechnung Gleichg.preis'!$D$11*VLOOKUP('Berechnung Gleichg.preis'!$D$9,Sorten!$B$3:$C$29,2))/(1-'Berechnung Gleichg.preis'!$D$24)*10*F15) -> 90.63334289 | G17: =IF('Berechnung Gleichg.preis'!$D$34="","",(('Berechnung Gleichg.preis'!$D$11*VLOOKUP('Berechnung Gleichg.preis'!$D$9,Sorten!$B$3:$C$29,2)))/(1-'Berechnung Gleichg.preis'!$D$24)*10*'Berechnung Gleichg.preis'!$D$34-('Berechnung Gleichg.preis'!$D$11*VLOOKUP('Berechnung Gleichg.preis'!$D$9,Sorten!$B$3:$C$29,2))/(1-'Berechnung Gleichg.preis'!$D$24)*10*G15) -> 69.95489898 | H17: =IF('Berechnung Gleichg.preis'!$D$34="","",(('Berechnung Gleichg.preis'!$D$11*VLOOKUP('Berechnung Gleichg.preis'!$D$9,Sorten!$B$3:$C$29,2)))/(1-'Berechnung Gleichg.preis'!$D$24)*10*'Berechnung Gleichg.preis'!$D$34-('Berechnung Gleichg.preis'!$D$11*VLOOKUP('Berechnung Gleichg.preis'!$D$9,Sorten!$B$3:$C$29,2))/(1-'Berechnung Gleichg.preis'!$D$24)*10*H15) -> 62.30524316 | I17: =IF('Berechnung Gleichg.preis'!$D$34="","",(('Berechnung Gleichg.preis'!$D$11*VLOOKUP('Berechnung Gleichg.preis'!$D$9,Sorten!$B$3:$C$29,2)))/(1-'Berechnung Gleichg.preis'!$D$24)*10*'Berechnung Gleichg.preis'!$D$34-('Berechnung Gleichg.preis'!$D$11*VLOOKUP('Berechnung Gleichg.preis'!$D$9,Sorten!$B$3:$C$29,2))/(1-'Berechnung Gleichg.preis'!$D$24)*10*I15) -> 26.56149775 | J17: =IF('Berechnung Gleichg.preis'!$D$34="","",(('Berechnung Gleichg.preis'!$D$11*VLOOKUP('Berechnung Gleichg.preis'!$D$9,Sorten!$B$3:$C$29,2)))/(1-'Berechnung Gleichg.preis'!$D$24)*10*'Berechnung Gleichg.preis'!$D$34-('Berechnung Gleichg.preis'!$D$11*VLOOKUP('Berechnung Gleichg.preis'!$D$9,Sorten!$B$3:$C$29,2))/(1-'Berechnung Gleichg.preis'!$D$24)*10*J15) -> 2.767583441 | K17: =IF('Berechnung Gleichg.preis'!$D$34="","",(('Berechnung Gleichg.preis'!$D$11*VLOOKUP('Berechnung Gleichg.preis'!$D$9,Sorten!$B$3:$C$29,2)))/(1-'Berechnung Gleichg.preis'!$D$24)*10*'Berechnung Gleichg.preis'!$D$34-('Berechnung Gleichg.preis'!$D$11*VLOOKUP('Berechnung Gleichg.preis'!$D$9,Sorten!$B$3:$C$29,2))/(1-'Berechnung Gleichg.preis'!$D$24)*10*K15) -> -21.8339572 | L17: =IF('Berechnung Gleichg.preis'!$D$34="","",(('Berechnung Gleichg.preis'!$D$11*VLOOKUP('Berechnung Gleichg.preis'!$D$9,Sorten!$B$3:$C$29,2)))/(1-'Berechnung Gleichg.preis'!$D$24)*10*'Berechnung Gleichg.preis'!$D$34-('Berechnung Gleichg.preis'!$D$11*VLOOKUP('Berechnung Gleichg.preis'!$D$9,Sorten!$B$3:$C$29,2))/(1-'Berechnung Gleichg.preis'!$D$24)*10*L15) -> -47.28495342
B18: * Kann direkt vom Mähdrescher auf Transportfahrzeuge des Handels verladen werden, entsteht eine Kostenersparnis von ca. 75,- €/ha.
B19: =" Die ausgewiesenen Gleichgewichtspreise verringern sich in der gerechneten Konstellation um "&ROUND(75/H11,2)&" € je dt." -> Die ausgewiesenen Gleichgewichtspreise verringern sich in der gerechneten Konstellation um 0,67 € je dt.
A21: =IF(Beraterdaten!C5="","","Kontakt: "&Beraterdaten!C4&" "&Beraterdaten!C5&", "&Beraterdaten!C6&", "&Beraterdaten!C7&", Tel.: "&Beraterdaten!C8&", "&Beraterdaten!C4&"."&Beraterdaten!C5&"@LLH.hessen.de") -> Kontakt: Bernhard Blackert, FG 11.1 "Beratungsteam Ökonomie", Zentrale Kassel, Tel.: 0561/7299-330, Bernhard.Blackert@LLH.hessen.de

Sheet Reifezahlrechner
B2: Wirtschaftlichkeitsrechner Maisanbau
B3: Notwendiger Mehrertrag für Körnermaissorten mit hoher Reifezahl gegenüber Sorten mit niedriger Reifezahl
B11: Reifezahl Sorte 1 | C11: 250 | E11: Erntefeuchte in % | G11: 0.336 | I11: ="Trocknungskosten bei "&C16&" dt Ertrag" -> Trocknungskosten bei 100 dt Ertrag | M11: =IF(G11="","",$C$16/((100-(G11*100-14)*1.3)/100)*VLOOKUP(G11,Trocknungstabelle!B6:C196,2)) -> 758.185722
B13: Reifezahl Sorte 2 | C13: 190 | E13: Erntefeuchte in % | G13: =IF(I44<27,27,I44)/100 -> 0.276 | I13: ="Trocknungskosten bei "&C16&" dt Ertrag" -> Trocknungskosten bei 100 dt Ertrag | M13: =$C$16/((100-(G13*100-14)*1.3)/100)*VLOOKUP(G13,Trocknungstabelle!B6:C196,2) -> 580.6608358
B16: Ertrag Sorte mit niedriger Reifezahl | C16: 100
B19: Preis je dt trockene Ware | C19: 13 | D19: 14 | E19: 15 | F19: 16 | G19: 17 | H19: 18 | I19: 19 | J19: 20 | K19: 21 | L19: 22 | M19: 23 | N19: 24
B20: notwendiger Mehrertrag (trocken) | C20: =IF($C$16="","",$C$16*C53/$C$44+($C$16*C53/$C$44*'Parameter Reifezahl'!$G$3)/C19+(($C$16*C53/$C$44*'Parameter Reifezahl'!$G$3)/C19)*$C$52/C19+(($C$16*C53/$C$44*'Parameter Reifezahl'!$G$3)/C19)*$C$52/C19*'Parameter Reifezahl'!$G$3/C19+(($C$16*C53/$C$44*'Parameter Reifezahl'!$G$3)/C19)*$C$52/C19*'Parameter Reifezahl'!$G$3/C19*'Parameter Reifezahl'!G3/C19) -> 45.91970181 | D20: =IF($C$16="","",$C$16*D53/$C$44+($C$16*D53/$C$44*'Parameter Reifezahl'!$G$3)/D19+(($C$16*D53/$C$44*'Parameter Reifezahl'!$G$3)/D19)*$C$52/D19+(($C$16*D53/$C$44*'Parameter Reifezahl'!$G$3)/D19)*$C$52/D19*'Parameter Reifezahl'!$G$3/D19+(($C$16*D53/$C$44*'Parameter Reifezahl'!$G$3)/D19)*$C$52/D19*'Parameter Reifezahl'!$G$3/D19*'Parameter Reifezahl'!H3/D19) -> 37.43564835 | E20: =IF($C$16="","",$C$16*E53/$C$44+($C$16*E53/$C$44*'Parameter Reifezahl'!$G$3)/E19+(($C$16*E53/$C$44*'Parameter Reifezahl'!$G$3)/E19)*$C$52/E19+(($C$16*E53/$C$44*'Parameter Reifezahl'!$G$3)/E19)*$C$52/E19*'Parameter Reifezahl'!$G$3/E19+(($C$16*E53/$C$44*'Parameter Reifezahl'!$G$3)/E19)*$C$52/E19*'Parameter Reifezahl'!$G$3/E19*'Parameter Reifezahl'!I3/E19) -> 31.58236546 | F20: =IF($C$16="","",$C$16*F53/$C$44+($C$16*F53/$C$44*'Parameter Reifezahl'!$G$3)/F19+(($C$16*F53/$C$44*'Parameter Reifezahl'!$G$3)/F19)*$C$52/F19+(($C$16*F53/$C$44*'Parameter Reifezahl'!$G$3)/F19)*$C$52/F19*'Parameter Reifezahl'!$G$3/F19+(($C$16*F53/$C$44*'Parameter Reifezahl'!$G$3)/F19)*$C$52/F19*'Parameter Reifezahl'!$G$3/F19*'Parameter Reifezahl'!J3/F19) -> 27.23698616 | G20: =IF($C$16="","",$C$16*G53/$C$44+($C$16*G53/$C$44*'Parameter Reifezahl'!$G$3)/G19+(($C$16*G53/$C$44*'Parameter Reifezahl'!$G$3)/G19)*$C$52/G19+(($C$16*G53/$C$44*'Parameter Reifezahl'!$G$3)/G19)*$C$52/G19*'Parameter Reifezahl'!$G$3/G19+(($C$16*G53/$C$44*'Parameter Reifezahl'!$G$3)/G19)*$C$52/G19*'Parameter Reifezahl'!$G$3/G19*'Parameter Reifezahl'!K3/G19) -> 23.89601526 | H20: =IF($C$16="","",$C$16*H53/$C$44+($C$16*H53/$C$44*'Parameter Reifezahl'!$G$3)/H19+(($C$16*H53/$C$44*'Parameter Reifezahl'!$G$3)/H19)*$C$52/H19+(($C$16*H53/$C$44*'Parameter Reifezahl'!$G$3)/H19)*$C$52/H19*'Parameter Reifezahl'!$G$3/H19+(($C$16*H53/$C$44*'Parameter Reifezahl'!$G$3)/H19)*$C$52/H19*'Parameter Reifezahl'!$G$3/H19*'Parameter Reifezahl'!L3/H19) -> 21.25489909 | I20: =IF($C$16="","",$C$16*I53/$C$44+($C$16*I53/$C$44*'Parameter Reifezahl'!$G$3)/I19+(($C$16*I53/$C$44*'Parameter Reifezahl'!$G$3)/I19)*$C$52/I19+(($C$16*I53/$C$44*'Parameter Reifezahl'!$G$3)/I19)*$C$52/I19*'Parameter Reifezahl'!$G$3/I19+(($C$16*I53/$C$44*'Parameter Reifezahl'!$G$3)/I19)*$C$52/I19*'Parameter Reifezahl'!$G$3/I19*'Parameter Reifezahl'!M3/I19) -> 19.11931931 | J20: =IF($C$16="","",$C$16*J53/$C$44+($C$16*J53/$C$44*'Parameter Reifezahl'!$G$3)/J19+(($C$16*J53/$C$44*'Parameter Reifezahl'!$G$3)/J19)*$C$52/J19+(($C$16*J53/$C$44*'Parameter Reifezahl'!$G$3)/J19)*$C$52/J19*'Parameter Reifezahl'!$G$3/J19+(($C$16*J53/$C$44*'Parameter Reifezahl'!$G$3)/J19)*$C$52/J19*'Parameter Reifezahl'!$G$3/J19*'Parameter Reifezahl'!N3/J19) -> 17.35985194 | K20: =IF($C$16="","",$C$16*K53/$C$44+($C$16*K53/$C$44*'Parameter Reifezahl'!$G$3)/K19+(($C$16*K53/$C$44*'Parameter Reifezahl'!$G$3)/K19)*$C$52/K19+(($C$16*K53/$C$44*'Parameter Reifezahl'!$G$3)/K19)*$C$52/K19*'Parameter Reifezahl'!$G$3/K19+(($C$16*K53/$C$44*'Parameter Reifezahl'!$G$3)/K19)*$C$52/K19*'Parameter Reifezahl'!$G$3/K19*'Parameter Reifezahl'!O3/K19) -> 15.88719179 | L20: =IF($C$16="","",$C$16*L53/$C$44+($C$16*L53/$C$44*'Parameter Reifezahl'!$G$3)/L19+(($C$16*L53/$C$44*'Parameter Reifezahl'!$G$3)/L19)*$C$52/L19+(($C$16*L53/$C$44*'Parameter Reifezahl'!$G$3)/L19)*$C$52/L19*'Parameter Reifezahl'!$G$3/L19+(($C$16*L53/$C$44*'Parameter Reifezahl'!$G$3)/L19)*$C$52/L19*'Parameter Reifezahl'!$G$3/L19*'Parameter Reifezahl'!P3/L19) -> 14.63786026 | M20: =IF($C$16="","",$C$16*M53/$C$44+($C$16*M53/$C$44*'Parameter Reifezahl'!$G$3)/M19+(($C$16*M53/$C$44*'Parameter Reifezahl'!$G$3)/M19)*$C$52/M19+(($C$16*M53/$C$44*'Parameter Reifezahl'!$G$3)/M19)*$C$52/M19*'Parameter Reifezahl'!$G$3/M19+(($C$16*M53/$C$44*'Parameter Reifezahl'!$G$3)/M19)*$C$52/M19*'Parameter Reifezahl'!$G$3/M19*'Parameter Reifezahl'!Q3/M19) -> 13.56558114 | N20: =IF($C$16="","",$C$16*N53/$C$44+($C$16*N53/$C$44*'Parameter Reifezahl'!$G$3)/N19+(($C$16*N53/$C$44*'Parameter Reifezahl'!$G$3)/N19)*$C$52/N19+(($C$16*N53/$C$44*'Parameter Reifezahl'!$G$3)/N19)*$C$52/N19*'Parameter Reifezahl'!$G$3/N19+(($C$16*N53/$C$44*'Parameter Reifezahl'!$G$3)/N19)*$C$52/N19*'Parameter Reifezahl'!$G$3/N19*'Parameter Reifezahl'!R3/N19) -> 12.635875
B21: in dt/ha für Mais mit hoher Reifezahl
B24: =IF(Beraterdaten!C5="","","Kontakt: "&Beraterdaten!C4&" "&Beraterdaten!C5&", "&Beraterdaten!C6&", "&Beraterdaten!C7&", Tel.: "&Beraterdaten!C8&", "&Beraterdaten!C4&"."&Beraterdaten!C5&"@LLH.hessen.de") -> Kontakt: Bernhard Blackert, FG 11.1 "Beratungsteam Ökonomie", Zentrale Kassel, Tel.: 0561/7299-330, Bernhard.Blackert@LLH.hessen.de
B44: Prozent | C44: 100 | G44: Berechnung Zelle G 13 | I44: =G11*100-(C11-C13)/10 -> 27.6
B45: Regelfeuchte | C45: 14
B46: Schwundfaktor | C46: 1.3
B47: Trochnungskosten je dt Sorte 2 | C47: =VLOOKUP(G13,Trocknungstabelle!B6:C196,2) -> 4.78
B48: Trocknungskosten je dt Sorte 1 | C48: =VLOOKUP(G11,Trocknungstabelle!B6:C196,2) -> 5.65
A51: H1 | B51: Hilfsgrösse niedrige Reifezahl Formel: =$C$16/((100-($G$10-$c$45)*$c$46)/100)*$c$47/$C$16 | C51: =$C$16/((100-($G$13*100-$C$45)*$C$46)/100)*C47/C16 -> 5.806608358
A52: H2 | B52: Hilfsgrösse hohe Reifezahl Formel: =$C$16/((100-($G$11-$c$45)*$c$46)/100)*$c$48/C16 | C52: =$C$16/((100-($G$11*100-$C$45)*$C$46)/100)*$C$48/C16 -> 7.58185722
A53: y | B53: Ertrag mit niedriger Reifezahl Formel: =(($C$52-$C$51)*$C$16)/(C19-$C$52) =((5,59691913-4,43407235)*100)/(13-5,59691913) | C53: =(($C$52-$C$51)*$C$16)/(C19-$C$52) -> 32.76489627 | D53: 27.65985305 | E53: 23.93117677 | F53: 21.08836721 | G53: 18.84924558 | H53: 17.03997439 | I53: 15.54761484 | J53: 14.29560679 | K53: 13.23021294 | L53: 12.31260426 | M53: 11.51402531 | N53: 10.81272642

Sheet Infos zu Trocknung u. Schwund
B2: Wirtschaftlichkeitsrechner Maisanbau
A3: Informationen zur Trocknung und zum Schwundfaktor
B5: Die Regelfeuchte für Körnermais beträgt 14 %. Die Ernte erfolgt mit Kornfeuchten zwischen 25 und 40 %. Beim Trocknungsvorgang bedeutet jedes abgegebene Prozent Wasser einen Gewichtsverlust von 1,176 kg/dt. woraus sich, aufgerundet, ein theoretischer Schwundfaktor von 1,2 errechnet. Durch Abrieb, Staub, Besatz und Bruchkorn liegen die Verhältnisse in der Praxis komplexer und mit zunehmender Erntefeuchte entsteht bei Trocknung ein höherer Gewichtsverlust als der theoretisch errechnete. In Deutschland wird meist mit einem konstanten Schwundfaktor von 1,3 oder 1,35 gerechnet.
B7: Bei Anwendung des Schwundfaktors wird wie folgt gerechnet: (((Ausgangsfeuchte - Endfeuchte) x Schwundfaktor - 100) x (-1)/100) x Gewicht feucht Als Ergebnis erhält man die Menge trockene Ware. Rechenbeispiel: Kornfeuchte bei Ernte 32 %; Regelfeuchte 14 %; Schwundfaktor des Handels 1,3; Erntemenge feucht 150 dt (32 - 14) x 1,3 = 23,4 -100 = - 76,6 x -1 = 76,6 / 100 = 0,766 150 dt x 0,766 = 114,9 dt trockene Ware bei 14 % Kornfeuchte
B9: Trocknungskosten Die Trocknungskosten errechnen sich aus dem Produkt von erntefeuchter Ware und der Kosten je dt gemäß der gültigen Trocknungstabelle.
A11: Ansprechpartner: Bernhard Blackert, Fachgebiet 11.1 "Beratungsteam Ökonomie" Kontakt: 0561/7299-330, Bernhard.Blackert@LLH.hessen.de

Sheet Trocknungstabelle
B2: Trocknungstabelle gültig für Ernte 2024
B5: Feuchte | C5: Preis je 100 kg
B6: 0.21 | C6: 3.94
B7: =B6+0.1% -> 0.211 | C7: 3.94
B8: =B7+0.1% -> 0.212 | C8: 3.94
B9: 0.213 | C9: 3.94
B10: =B9+0.1% -> 0.214 | C10: 3.94
B11: 0.215 | C11: 3.94
B12: 0.216 | C12: 3.94
B13: 0.217 | C13: 3.94
B14: 0.218 | C14: 3.94
B15: 0.219 | C15: 3.94
B16: 0.22 | C16: 3.94
B17: 0.221 | C17: 4.08
B18: 0.222 | C18: 4.08
B19: 0.223 | C19: 4.08
B20: 0.224 | C20: 4.08
B21: 0.225 | C21: 4.08
B22: 0.226 | C22: 4.08
B23: 0.227 | C23: 4.08
B24: 0.228 | C24: 4.08
B25: 0.229 | C25: 4.08
B26: 0.23 | C26: 4.22
B27: 0.231 | C27: 4.22
B28: 0.232 | C28: 4.22
B29: 0.233 | C29: 4.22
B30: 0.234 | C30: 4.22
B31: 0.235 | C31: 4.22
B32: 0.236 | C32: 4.22
B33: 0.237 | C33: 4.22
B34: 0.238 | C34: 4.22
B35: 0.239 | C35: 4.22
B36: 0.24 | C36: 4.36
B37: 0.241 | C37: 4.36
B38: 0.242 | C38: 4.36
B39: 0.243 | C39: 4.36
B40: 0.244 | C40: 4.36
B41: 0.245 | C41: 4.36
B42: 0.246 | C42: 4.36
B43: 0.247 | C43: 4.36
B44: 0.248 | C44: 4.36
B45: 0.249 | C45: 4.36
B46: 0.25 | C46: 4.5
B47: 0.251 | C47: =3.9*1.5 -> 5.85
B48: 0.252 | C48: =3.9*1.5 -> 5.85
B49: 0.253 | C49: 5.85
B50: 0.254 | C50: 5.85
B51: 0.255 | C51: 5.85
B52: 0.256 | C52: 5.85
B53: 0.257 | C53: 5.85
B54: 0.258 | C54: 5.85
B55: 0.259 | C55: 5.85
B56: 0.26 | C56: 4.64
B57: 0.261 | C57: =3.99*1.5 -> 5.985
B58: 0.262 | C58: =3.99*1.5 -> 5.985
B59: 0.263 | C59: 5.985
B60: 0.264 | C60: 5.985
B61: 0.265 | C61: 5.985
B62: 0.266 | C62: 5.985
B63: 0.267 | C63: 5.985
B64: 0.268 | C64: 5.985
B65: 0.269 | C65: 5.985
B66: 0.27 | C66: 4.78
B67: 0.271 | C67: 4.78
B68: 0.272 | C68: 4.78
B69: 0.273 | C69: 4.78
B70: 0.274 | C70: 4.78
B71: 0.275 | C71: 4.78
B72: =B71+0.1% -> 0.276 | C72: 4.78
B73: 0.277 | C73: 4.78
B74: 0.278 | C74: 4.78
B75: 0.279 | C75: 4.78
B76: 0.28 | C76: 4.92
B77: 0.281 | C77: 4.92
B78: 0.282 | C78: 4.92
B79: 0.283 | C79: 4.92
B80: 0.284 | C80: 4.92
B81: 0.285 | C81: 4.92
B82: 0.286 | C82: 4.92
B83: 0.287 | C83: 4.92
B84: 0.288 | C84: 4.92
B85: 0.289 | C85: 4.92
B86: 0.29 | C86: 5.06
B87: 0.291 | C87: 5.06
B88: 0.292 | C88: 5.06
B89: 0.293 | C89: 5.06
B90: 0.294 | C90: 5.06
B91: 0.295 | C91: 5.06
B92: 0.296 | C92: 5.06
B93: 0.297 | C93: 5.06
B94: 0.298 | C94: 5.06
B95: 0.299 | C95: 5.06
B96: 0.3 | C96: 5.2
B97: 0.301 | C97: 5.2
B98: 0.302 | C98: 5.2
B99: 0.303 | C99: 5.2
B100: 0.304 | C100: 5.2
B101: 0.305 | C101: 5.2
B102: 0.306 | C102: 5.2
B103: 0.307 | C103: 5.2
B104: 0.308 | C104: 5.2
B105: 0.309 | C105: 5.2
B106: 0.31 | C106: 5.35
B107: 0.311 | C107: =4.45*1.5 -> 6.675
B108: 0.312 | C108: =4.45*1.5 -> 6.675
B109: 0.313 | C109: 6.675
B110: 0.314 | C110: 6.675
B111: 0.315 | C111: 6.675
B112: 0.316 | C112: 6.675
B113: 0.317 | C113: 6.675
B114: 0.318 | C114: 6.675
B115: 0.319 | C115: 6.675
B116: 0.32 | C116: 5.5
B117: 0.321 | C117: 5.5
B118: 0.322 | C118: 5.5
B119: 0.323 | C119: 5.5
B120: 0.324 | C120: 5.5
B121: 0.325 | C121: 5.5
B122: 0.326 | C122: 5.5
B123: 0.327 | C123: 5.5
B124: 0.328 | C124: 5.5
B125: 0.329 | C125: 5.5
B126: 0.33 | C126: 5.65
B127: 0.331 | C127: 5.65
B128: 0.332 | C128: 5.65
B129: 0.333 | C129: 5.65
B130: 0.334 | C130: 5.65
B131: 0.335 | C131: 5.65
B132: 0.336 | C132: 5.65
B133: 0.337 | C133: 5.65
B134: 0.338 | C134: 5.65
B135: 0.339 | C135: 5.65
B136: =B135+0.1% -> 0.34 | C136: 5.8
B137: 0.341 | C137: 5.8
B138: 0.342 | C138: 5.8
B139: 0.343 | C139: 5.8
B140: 0.344 | C140: 5.8
B141: 0.345 | C141: 5.8
B142: 0.346 | C142: 5.8
B143: 0.347 | C143: 5.8
B144: 0.348 | C144: 5.8
B145: 0.349 | C145: 5.8
B146: 0.35 | C146: 5.95
B147: 0.351 | C147: 5.95
B148: 0.352 | C148: 5.95
B149: 0.353 | C149: 5.95
B150: 0.354 | C150: 5.95
B151: 0.355 | C151: 5.95
B152: 0.356 | C152: 5.95
B153: 0.357 | C153: 5.95
B154: 0.358 | C154: 5.95
B155: 0.359 | C155: 5.95
B156: 0.36 | C156: 6.1
B157: 0.361 | C157: 6.1
B158: 0.362 | C158: 6.1
B159: 0.363 | C159: 6.1
B160: 0.364 | C160: 6.1
B161: 0.365 | C161: 6.1
B162: 0.366 | C162: 6.1
B163: 0.367 | C163: 6.1
B164: 0.368 | C164: 6.1
B165: 0.369 | C165: 6.1
B166: 0.37 | C166: 6.25
B167: 0.371 | C167: 6.25
B168: 0.372 | C168: 6.25
B169: 0.373 | C169: 6.25
B170: 0.374 | C170: 6.25
B171: 0.375 | C171: 6.25
B172: 0.376 | C172: 6.25
B173: 0.377 | C173: 6.25
B174: 0.378 | C174: 6.25
B175: 0.379 | C175: 6.25
B176: 0.38 | C176: 6.4
B177: 0.381 | C177: 6.4
B178: 0.382 | C178: 6.4
B179: 0.383 | C179: 6.4
B180: 0.384 | C180: 6.4
B181: 0.385 | C181: 6.4
B182: 0.386 | C182: 6.4
B183: 0.387 | C183: 6.4
B184: 0.388 | C184: 6.4
B185: 0.389 | C185: 6.4
B186: 0.39 | C186: 6.55
B187: 0.391 | C187: 6.55
B188: 0.392 | C188: 6.55
B189: 0.393 | C189: 6.55
B190: 0.394 | C190: 6.55
B191: 0.395 | C191: 6.55
B192: 0.396 | C192: 6.55
B193: 0.397 | C193: 6.55
B194: 0.398 | C194: 6.55
B195: 0.399 | C195: 6.55
B196: 0.4 | C196: 6.7

Sheet Sorten
B1: Kornanteil der Einzelsorten laut Angaben des Züchters
B2: Sortentyp | C2: Kornanteil an der TM in %
B3: ausgeglichen | C3: =52%*F11 -> 0.52 | D3: 50 - 55%
B4: Energiemais | C4: =45%*F11 -> 0.45 | D4: 40 - 50%
B5: kolbenbetont | C5: =55%*F11 -> 0.55 | D5: 55 - 60%
B6: Körner spezial | C6: =59%*F11 -> 0.59
B7: COLISEE | C7: =52.8%*F11 -> 0.528 | D7: früh
B8: FABREGAS | C8: =49.2%*F11 -> 0.492
B9: KOMPETENS | C9: =51.1%*F11 -> 0.511 | E9: Abweichung vom Durchschnitt, Einschätzung Jahreseffekt
B10: KWS STABIL | C10: =52%*F11 -> 0.52
B11: BARROS | C11: =49.2%*F11 -> 0.492 | D11: mittelfrüh | E11: Faktor | F11: 1
B12: CAROLINIO KWS | C12: =50.3%*F11 -> 0.503
B13: CORFINIO KWS | C13: =44.9%*F11 -> 0.449
B14: FERNANDEZ | C14: =49.6%*F11 -> 0.496
B15: FREDERICO KWS | C15: =50.5%*F11 -> 0.505
B16: GROSSO | C16: =52.1%*F11 -> 0.521
B17: KWS 2322 | C17: =51.7%*F11 -> 0.517
B18: MILLESIM | C18: =52.5%*F11 -> 0.525
B19: PANVINIO | C19: =50%*F11 -> 0.5
B20: RENATINIO | C20: =50.7%*F11 -> 0.507
B21: RICARDINIO | C21: =54.7%*F11 -> 0.547
B22: RIVALDINIO KWS | C22: =52%*F11 -> 0.52
B23: RONALDINIO | C23: =52.7%*F11 -> 0.527
B24: SIMPATICO KWS | C24: =47.5%*F11 -> 0.475
B25: TORRES | C25: =54.4%*F11 -> 0.544
B26: AMPATICO KWS | C26: =51.1%*F11 -> 0.511 | D26: spät
B27: KILOMERIS | C27: =45.9%*F11 -> 0.459
B28: KWS 9361 | C28: =51.5%*F11 -> 0.515
B29: WALTERINIO KWS | C29: =53%*F11 -> 0.53

Sheet Beraterdaten
B2: Kontaktdaten der Beraterin/des Beraters
B4: Vorname | C4: Bernhard
B5: Name | C5: Blackert
B6: Fachgebiet | C6: FG 11.1 "Beratungsteam Ökonomie"
B7: LLH-Standort | C7: Zentrale Kassel
B8: Telefonnummer | C8: 0561/7299-330

Sheet Entzüge und Nährstoffpreise
B2: Entzüge je dt | C2: N | D2: P2O5 | E2: K2O | F2: MgO | G2: Nährstoff-wert
B3: Energiemais bei 100 % TM | C3: 1.33 | D3: 0.55 | E3: 1.5 | F3: 0.36 | G3: =C3*C7+D3*D7+E3*E7+F3*F7 -> 4.2489
B4: Körnermais bei 100 % TM | C4: =1.51/0.86 -> 1.755813953 | D4: =0.8/0.86 -> 0.9302325581 | E4: =0.5/0.86 -> 0.5813953488 | F4: =0.25/0.86 -> 0.2906976744 | G4: =C4*C7+D4*D7+E4*E7+F4*F7 -> 4.621511628
B5: Nährstoffrückführung je t bzw m3
B6: Substrat | C6: 3.34 | D6: 1.77 | E6: 3.77 | F6: 0.5 | G6: =C6*C7+D6*D7+E6*E7+F6*F7 -> 10.7562
B7: Nährstoffpreis | C7: 1.45 | D7: 1.4 | E7: 0.76 | F7: 1.14
C11: 14.5 | D11: =((G3)*'Berechnung Gleichg.preis'!D11*10)-('Berechnung Gleichg.preis'!D11/C12*100)*(G6*'Berechnung Gleichg.preis'!D15)+(('Berechnung Gleichg.preis'!D11/C12*100*C13))*'Berechnung Gleichg.preis'!D15-('Berechnung Gleichg.preis'!D11*VLOOKUP('Berechnung Gleichg.preis'!D9,Sorten!B3:C29,2,FALSE))*G4*10 -> 37.73721439 | E11: Vorteil Düngekosten für Körnermais
B12: TM-Gehalt Biogasmais | C12: 32
B13: Gülleausbringung | C13: ='Berechnung Gleichg.preis'!D17 -> 5.5

Sheet Standardwerte
B2: Sortentyp | C2: ausgeglichen
B4: Ertragsschätzung Silonutzung in t TM/ha | C4: 20
B6: Preis je t TM | C6: 71
B8: Höhe der Gärrestrücklieferung in % des Frischmasseertrages | C8: 0.75
B10: Ausbringkosten Gärrest in €/m3 | C10: 3
B15: Kornfeuchte Erntegut in% | C15: 0.31
B17: Regelfeuchte in % | C17: 0.14
B19: Schwundfaktor | C19: 1.3
B21: Kosten Körnermaisernte in €/ha | C21: 160
B23: Kosten Abtransport Körnermais in €/ha | C23: 60
B25: evtl. Stengel mulchen in €/ha | C25: 60
B27: aktueller Preis Körnermais, trockene Ware in €/dt | C27: 22

Sheet Parameter Reifezahl
C2: N | D2: P2O5 | E2: K2O | F2: MgO | G2: Nährstoffwert
B3: Entzüge je dt Ertrag bei 86 % TM | C3: 1.51 | D3: 0.8 | E3: 0.5 | F3: 0.25 | G3: =C3*C5+D3*D5+E3*E5+F3*F5 -> 2.986
B5: Nährstoffpreis je kg Reinnährstoff | C5: 1.1 | D5: 1 | E5: 0.7 | F5: 0.7
